Cogmind - Beta 17 @@@ ROGUE MODE // 2026.06.28 @ 09:54:58 Player: 3.14 Result: Self-destructed Performance ------------- Evolutions (0) 0 Regions Visited (4) 800 Robots Destroyed (67) 335 Value Destroyed (1324) 1324 Prototype IDs (7) 140 Alien Tech Used (0) 0 Bonus (9300) 9300 TOTAL SCORE: 11899 Bonus ------- Prayed to X0-1V1 5000 Major X0-1V1 Interference 4000 Registered with UFD 300 Cogmind --------- Core Integrity 204/400 Matter 300/300 Energy 325/325 System Corruption 0% Temperature Cool (0) Movement Treading (960) Ox10 Location -7/Scraptown Parts ------- > --- POWER (2) -------- Improved Ion Engine Light Fission Core > --- PROPULSION (1) --- Light Treads (fused) > --- UTILITY (2) ------ Humpback > --- WEAPON (3) ------- Field Laser Mace > --- INVENTORY (35) --- Meta Core Light Treads Large Storage Unit High-capacity Matter Pod (192) Deep Structural Scanner Improved Sensor Array Active Sensor Suite Improved Targeting Computer Improved Medium Armor Plating Improved Heavy Armor Plating Shield Generator High-powered Tractor Beam X0-1V1's Piety Tracker Heavy EM Pulse Gun Gauss Cannon Grenade Launcher Subdweller Shrapnel Launcher CPS Tube (2) CPS Tube (2) CPS Tube (2) Multitool Peak State ------------ > --- POWER ------------ Improved Ion Engine Light Fission Core > --- PROPULSION ------- Light Treads > --- UTILITY ---------- Large Storage Unit X0-1V1's Piety Tracker > --- WEAPON ----------- Field Laser Mace > --- INVENTORY -------- Meta Core Light Treads High-capacity Matter Pod Deep Structural Scanner Active Sensor Suite Improved Medium Armor Plating Improved Heavy Armor Plating Shield Generator Gauss Cannon Grenade Launcher Subdweller Shrapnel Launcher Multitool [Rating: 34] Favorites ----------- Power Improved Ion Engine Engine Improved Ion Engine Power Core Light Fission Core Propulsion Light Treads Treads Light Treads Wheel Subdweller Monowheel Utility Large Storage Unit Device X0-1V1's Piety Tracker Storage Large Storage Unit Protection Makeshift Light Armor Plating Weapon Mace Energy Gun Field Laser Energy Cannon Subdweller Beam Cannon Ballistic Gun Assault Rifle Ballistic Cannon Gauss Cannon Launcher Subdweller Shrapnel Launcher Impact Weapon Mace Build | -11 -10 -10 -7 -7 ------- Run | Yrd Mat Sub Rec Scr Slots Evolved . | . . . . . Power . | . . . . . Propulsion . | . . . . . Utility . | . . . . . Weapon . | . . . . . Parts Attached 58 | 7 6 23 14 8 Power 10 | 1 . 6 1 2 Engine 9 | 1 . 6 1 1 Core 1 | . . . . 1 Reactor . | . . . . . Propulsion 9 | 2 . 4 3 . Treads 8 | 2 . 3 3 . Leg . | . . . . . Wheel 1 | . . 1 . . Hover . | . . . . . Flight . | . . . . . Utility 20 | 2 3 3 9 3 Device 8 | 1 2 1 3 1 Storage 5 | 1 1 . 1 2 Processor . | . . . . . Hackware . | . . . . . Protection 7 | . . 2 5 . Artifact . | . . . . . Weapon 19 | 2 3 10 1 3 Energy Gun 4 | 1 . 2 . 1 Energy Cannon 6 | . 1 4 1 . Ballistic Gun 6 | 1 2 2 . 1 Ballistic Cannon 1 | . . . . 1 Launcher 1 | . . 1 . . Special Weapon . | . . . . . Impact Weapon 1 | . . 1 . . Slashing Weapon . | . . . . . Piercing Weapon . | . . . . . Special Melee Weapon . | . . . . . Unidentified Prototypes 1 | . 1 . . . Parts Lost 19 | . . 9 10 . Power 8 | . . 6 2 . Propulsion 4 | . . 1 3 . Utility 4 | . . . 4 . Weapon 3 | . . 2 1 . Highest Loss Streak 6 | . . 2 6 . To Critical Strikes . | . . . . . Average Backups 13 | 3 14 13 12 13 Power . | . 1 . . . Propulsion 1 | 1 2 2 . . Utility 5 | . 3 2 6 7 Weapon 5 | 1 6 7 4 3 Tool/Special . | . . . . . Unused Backups 33 | . 8 9 . 16 Power . | . . . . . Propulsion 2 | . 2 . . . Utility 11 | . 1 1 . 9 Weapon 15 | . 5 8 . 2 Tool/Special 5 | . . . . 5 Average Slot Usage (%) 85 | . 100 96 57 78 Engine 13 | . 14 21 4 10 Core 1 | . . . . 3 Treads 15 | . 28 15 11 12 Device 8 | . 14 4 9 9 Storage 12 | . 14 13 12 11 Protection 3 | . . 10 4 . Energy Gun 3 | . 3 3 . 4 Energy Cannon 7 | . 5 19 . . Ballistic Gun 6 | . 19 5 . 5 Ballistic Cannon 2 | . . . . 7 Impact Weapon 6 | . . . 11 12 Peak Build Rating 34 | 7 20 33 29 34 Average Rating 21 | 6 8 21 21 27 On Entrance 15 | . 7 20 29 21 Avg Prop Armor Cover (%) 28 | . . . . 28 Naked Turns . | . . . . . Heaviest Build 219 | 15 32 57 40 219 Greatest Support 40 | 40 40 40 23 20 Greatest Overweight (x) 10 | . . 2 1 10 Average Overweight (x) 1 | . . 1 1 1 Largest Inventory Capacity 35 | 8 15 15 15 35 Average Capacity 16 | 7 14 15 15 19 Most Carried 24 | 6 15 15 15 24 Average Carried 14 | 3 14 14 13 15 Final Capacity 35 | 8 15 15 15 35 Final Carried 24 | 6 15 13 14 24 Class Distribution -------------------- 69% | Mutant 15% | Derelict-Mutant 8% | Hauler-Mutant 6% | Derelict-Tank Dominant Class ---------------- Mutant | -10/Materials Derelict-Mutant | -10/Subcaves Mutant | -7/Recycling Mutant | -7/Scraptown Resources | -11 -10 -10 -7 -7 ----------- Run | Yrd Mat Sub Rec Scr Matter Collected 2746 | 292 493 1195 520 246 Remotely . | . . . . . Salvage Created 2053 | 75 634 824 520 . Parts 122 | 11 41 59 11 . Haulers Intercepted 2 | . 2 . . . Recyclers Shooed 3 | . 3 . . . Parts Field Recycled . | . . . . . Retrieved Matter . | . . . . . Parts Self-Destructed 24 | . . 24 . . Prevented . | . . . . . Parts Restored . | . . . . . Kills | -11 -10 -10 -7 -7 ------- Run | Yrd Mat Sub Rec Scr Combat Hostiles Destroyed 48 | . 11 35 2 . Melee 2 | . . 1 1 . Guns 19 | . 11 8 . . Cannons 14 | . . 14 . . AOE 12 | . . 12 . . Classes Destroyed 12 | 1 7 4 . . Worker 1 | . 1 . . . Builder 1 | . 1 . . . Tunneler 4 | 4 . . . . Hauler 2 | . 2 . . . Recycler 9 | . 3 . 6 . Operator 1 | . 1 . . . Turret 1 | . . 1 . . Swarmer 25 | . 6 19 . . Grunt 5 | . 5 . . . Sentry 3 | . . 1 2 . Cobbler 2 | . . 2 . . Subdweller 15 | . . 15 . . Best Kill Streak 5 | 1 5 5 2 . Combat Bots Only 5 | . 4 5 1 . Max Kills in Single Turn 4 | 1 1 4 1 . Gunslinging . | . . . . . Exploded 4 | . . 4 . . Melee 1 | . . 1 1 . Uniques/NPCs Destroyed . | . . . . . Combat | -11 -10 -10 -7 -7 -------- Run | Yrd Mat Sub Rec Scr Hostile Shots Fired 464 | . 57 182 225 . Missed 127 | . 19 51 57 . Hits 337 | . 38 131 168 . Projectile 337 | . 38 131 168 . Critical Strikes 4 | . . 4 . . Damage Taken 3697 | . 373 1918 1406 . Core 765 | . 38 349 378 . Absorbed by Shields . | . . . . . Core Remaining (%) 100 | 100 . . . . Volleys Fired 160 | 11 67 72 10 . Largest 3 | 2 2 3 2 . Hottest 240 | 70 80 240 140 . Shots Fired 307 | 22 133 134 18 . Gun 215 | 22 131 53 9 . Cannon 81 | . 2 70 9 . Launcher 11 | . . 11 . . Special . | . . . . . Kinetic 186 | 11 125 50 . . Thermal 121 | 11 8 84 18 . Explosive . | . . . . . Electromagnetic . | . . . . . Robot Hit Streak 21 | 11 7 21 3 . Robot Miss Streak 4 | 1 3 4 3 . Penetration Max . | . . . . . Secondary Targets . | . . . . . Shots Hit Robots 206 | 17 83 83 23 . Core Hits 98 | 4 38 48 8 . Critical Kills 2 | . . 1 1 . Critical Parts Destroyed 1 | . 1 . . . Critical Strikes 6 | 2 1 2 1 . Burn 2 | 2 . . . . Destroy 3 | . 1 2 . . Smash 1 | . . . 1 . Melee Attacks 23 | . . 3 20 . Impact 23 | . . 3 20 . Slashing . | . . . . . Piercing . | . . . . . Sneak Attacks 6 | . . . 6 . Combat Hostiles . | . . . . . Follow-up Attacks . | . . . . . Damage Inflicted 4723 | 214 990 2738 781 . Guns 1986 | 214 917 752 103 . Cannons 972 | . 36 854 82 . Explosions 1056 | . . 1056 . . Melee 665 | . . 76 589 . Ramming 44 | . 37 . 7 . Kinetic 2610 | 101 878 1631 . . Thermal 1404 | 113 75 1031 185 . Explosive . | . . . . . Electromagnetic . | . . . . . Impact 665 | . . 76 589 . Slashing . | . . . . . Piercing . | . . . . . Highest Corruption 21 | . . 21 11 . Average Corruption 5 | . . 3 10 . Corruption Purged . | . . . . . Corruption Blocked . | . . . . . Effects 103 | . . 52 51 . Message Errors 22 | . . 10 12 . Matter Fused 28 | . . 15 13 . Heat Flow Errors 12 | . . 2 10 . Energy Discharges 12 | . . 8 4 . Parts Rejected 2 | . . . 2 . Parts Fused 1 | . . . 1 . Data Loss (minor) 11 | . . 7 4 . Data Loss (major) 2 | . . . 2 . Misfires 7 | . . 7 . . Alerts 4 | . . 2 2 . Weapon Failures 2 | . . 1 1 . Overload Shots . | . . . . . Overflow Damage 195 | . . 24 171 . Projectiles . | . . . . . Explosions 24 | . . 24 . . Melee 171 | . . . 171 . Knockbacks 3 | . . 1 2 . Impact 3 | . . 1 2 . Kinetic . | . . . . . Secondary . | . . . . . Self-Inflicted Damage 79 | . . 79 . . Shots 3 | . . 3 . . Rammed 14 | . 11 . 3 . Targets Rammed 15 | . 12 . 3 . Kicked . | . . . . . Crushed 1 | . 1 . . . Highest Temperature 651 | 27 36 438 651 . Average Temperature 133 | 11 12 117 202 . Received Heat Transfer 1158 | . 123 657 378 . Effects 18 | . . 3 15 . Energy Bleed 3 | . . 2 1 . Interference 7 | . . 1 6 . Matter Decay 3 | . . . 3 . Damage (major) 5 | . . . 5 . Siege Activations . | . . . . . Martial Activations . | . . . . . Shielding Activations . | . . . . . Robots Disrupted . | . . . . . Combat Hostiles . | . . . . . Robots Corrupted 3 | . . . 3 . Combat Hostiles . | . . . . . Parts Fried 4 | . . . 4 . Impact Corruptions 7 | . . . 7 . Robots Melted 1 | . . . 1 . Combat Hostiles 1 | . . . 1 . Parts Melted 4 | 2 1 1 . . Heat Transferred 2545 | 481 185 1643 236 . Parts Sabotaged . | . . . . . Parts Stolen . | . . . . . Parts Stripped . | . . . . . Power Chain Reactions . | . . . . . Alert | -11 -10 -10 -7 -7 ------- Run | Yrd Mat Sub Rec Scr Maximum Alert Level 1 | . 1 . . . Low Security (%) 93 | 100 87 . 100 . Level 1 6 | . 12 . . . Level 2 . | . . . . . Level 3 . | . . . . . Level 4 . | . . . . . Level 5 . | . . . . . High Security . | . . . . . Max Security . | . . . . . Peak Influence 243 | 5 243 . 144 . Initial 144 | . . . 144 . Average 61 | 1 109 . 10 . Influence Increases 1000 | 20 429 480 71 . Destroy 0b10 Robot/C 680 | . 220 420 40 . Destroy 0b10 Robot/NC 90 | 20 40 . 30 . Destroy Leader 44 | . 44 . . . Successful Hack 20 | . 20 . . . Destroy Structure 1 | . . . 1 . Lose Combat Pursuer 165 | . 105 60 . . Influence Decreases 1000 | 20 375 232 373 . Entered New Map 184 | . . 26 158 . Time Decay 712 | 20 375 176 141 . Lost Part 90 | . . 30 60 . Purge Threat 14 | . . . 14 . Squads Dispatched 2 | . 2 . . . Investigation . | . . . . . Extermination . | . . . . . Reinforcement 2 | . 2 . . . Assault . | . . . . . Garrison . | . . . . . Intercept . | . . . . . Searches Triggered . | . . . . . Construction Impeded . | . . . . . Haulers Reinforced . | . . . . . Active Scanning Responses . | . . . . . Cargo Convoy Interrupts . | . . . . . Stealth | -11 -10 -10 -7 -7 --------- Run | Yrd Mat Sub Rec Scr Distress Signals 2 | . 2 . . . Communications Jammed . | . . . . . Distress Signals . | . . . . . Times Spotted 77 | . 36 39 2 . Peak Tracking Total 6 | . 6 5 1 . Tactical Retreats 6 | . 4 2 . . Traps | -11 -10 -10 -7 -7 ------- Run | Yrd Mat Sub Rec Scr Traps Triggered 1 | . . 1 . . Indirectly . | . . . . . Trap Hack Attempts . | . . . . . Triggered . | . . . . . Disarmed . | . . . . . Reprogrammed . | . . . . . Reused . | . . . . . Traps Extracted . | . . . . . Installed . | . . . . . Triggered . | . . . . . Most Traps Carried 4 | . . 4 . . Machines | -11 -10 -10 -7 -7 ---------- Run | Yrd Mat Sub Rec Scr Machines Disabled 3 | . . 3 . . Max in Single Turn 2 | . . 2 . . Machines Repaired . | . . . . . Machines Dismantled . | . . . . . Machines Sabotaged . | . . . . . Overloaded Fab Kills . | . . . . . Hacking | -11 -10 -10 -7 -7 --------- Run | Yrd Mat Sub Rec Scr Machines Accessed 12 | . 5 1 1 5 Terminals 6 | . 5 . 1 . Fabricators . | . . . . . Repair Stations . | . . . . . Recycling Units . | . . . . . Scanalyzers . | . . . . . Garrison Access . | . . . . . Total Hacks 62 | . 12 3 4 43 Successful 50 | . 3 3 1 43 Failed 12 | . 9 . 3 . Catastrophic 2 | . 1 . 1 . Database Lockouts . | . . . . . Manual 13 | . 9 . 4 . Terminals 16 | . 12 . 4 . Fabricators . | . . . . . Repair Stations . | . . . . . Recycling Units . | . . . . . Scanalyzers . | . . . . . Garrison Access . | . . . . . Terminal Hacks 50 | . 3 3 1 43 Record 46 | . . 3 . 43 Part Schematic 1 | . 1 . . . Robot Analysis 1 | . 1 . . . Branch Access Points 1 | . 1 . . . Unreport Threat 1 | . . . 1 . Fabricator Hacks . | . . . . . Repair Station Hacks . | . . . . . Recycling Unit Hacks . | . . . . . Scanalyzer . | . . . . . Garrison Access Hacks . | . . . . . Unauthorized Hacks . | . . . . . Terminals . | . . . . . Fabricators . | . . . . . Repair Stations . | . . . . . Recycling Units . | . . . . . Scanalyzers . | . . . . . Garrison Access . | . . . . . Data Cores Recovered 1 | . 1 . . . Used . | . . . . . Hacking Detections 6 | . 5 . 1 . Full Trace Events 1 | . . . 1 . Feedback Events . | . . . . . Feedback Blocked . | . . . . . Robot Schematics Acquired . | . . . . . Robots Built . | . . . . . Authchips . | . . . . . Time . | . . . . . Total Robot Build Rating . | . . . . . Part Schematics Acquired 1 | . 1 . . . Parts Built . | . . . . . Authchips . | . . . . . Time . | . . . . . Total Part Build Rating . | . . . . . Part Studies Acquired . | . . . . . Parts Repaired . | . . . . . Time . | . . . . . Parts Recycled . | . . . . . Recycled Matter . | . . . . . Retrieved Matter . | . . . . . Retrieved Components . | . . . . . Parts Scanalyzed . | . . . . . Part Schematics Acquired . | . . . . . Parts Damaged . | . . . . . Bothacking | -11 -10 -10 -7 -7 ------------ Run | Yrd Mat Sub Rec Scr Used RIF Installer . | . . . . . Robots Hacked . | . . . . . Non-combat . | . . . . . Combat . | . . . . . Robot Hacks Applied . | . . . . . Relay Couplers Released . | . . . . . Fabnet Peak Effective % . | . . . . . Robots Rewired . | . . . . . Allies Hacked . | . . . . . Hacks Repelled . | . . . . . Allies | -11 -10 -10 -7 -7 -------- Run | Yrd Mat Sub Rec Scr Total Allies . | . . . . . Largest Group . | . . . . . Highest-Rated Group . | . . . . . Highest-Rated Ally . | . . . . . Total Orders . | . . . . . Ally Attacks . | . . . . . Total Damage . | . . . . . Kills . | . . . . . Allies Corrupted . | . . . . . Allies Melted . | . . . . . X0-1V1 Amusement Gains 102 | . 7 25 70 . Good Acts 22 | . . 21 1 . Bad Acts 31 | . . 27 4 . Intel | -11 -10 -10 -7 -7 ------- Run | Yrd Mat Sub Rec Scr Active Infowar (turns) 1207 | 118 1065 . . 24 Structural 24 | . . . . 24 Seismic 1183 | 118 1065 . . . Robot Analysis Total 1 | . 1 . . . Derelict Logs Recovered 3 | . . . . 3 Drone Launches . | . . . . . Drone Recoveries . | . . . . . Exploration | -11 -10 -10 -7 -7 ------------- Run | Yrd Mat Sub Rec Scr Turns Passed 11097 | 205 1674 3435 1328 4455 Spaces Moved 4042 | 103 743 1071 501 1624 Core 129 | 7 . . . 122 Treads 3880 | 96 743 1038 501 1502 Legs . | . . . . . Wheels 33 | . . 33 . . Hover . | . . . . . Flight . | . . . . . Fastest Speed 50 | 50 160 120 240 50 Average Speed 249 | 152 160 293 240 270 Slowest Speed 960 | 160 160 360 240 960 Overloaded Moves . | . . . . . Propulsion Burnouts . | . . . . . Robots Hopped . | . . . . . Potential Cave-ins 18 | . . 1 17 . Cave-ins Triggered 1 | . . . 1 . Exploration Rate (%) 66 | 5 90 57 95 87 Regions Visited 4 Branch Regions 3 Pre-discovered Areas 4 | . . . . 4 Known Exits Taken 1 | . . 1 . . Unknown Exits Taken 3 | 1 1 . 1 . Scrap Searched 13 | . . 9 . 4 Spaces Dug 15 | . . 14 1 . Terrain Destroyed 130 | . . 129 1 . Melee 1 | . . . 1 . Projectile 6 | . . 6 . . AOE 123 | . . 123 . . Terrain Rammed . | . . . . . Walls Destroyed . | . . . . . Machines Disabled . | . . . . . Actions | -11 -10 -10 -7 -7 --------- Run | Yrd Mat Sub Rec Scr Total 4725 | 126 1108 1240 569 1682 Wait 259 | . 243 9 7 . Move 4037 | 102 742 1070 499 1624 Hop . | . . . . . Pick Up 90 | 6 22 22 6 34 Fast Attach 32 | 7 1 10 6 8 Attach 21 | . 1 11 8 1 Detach 4 | . . 2 2 . Swap 24 | . 4 15 4 1 Drop 59 | . 16 26 3 14 Fire 160 | 11 67 72 10 . Melee 23 | . . 3 20 . Ram . | . . . . . Kick . | . . . . . Crush 15 | . 12 . 3 . Escape Stasis 1 | . . . 1 . Rewire . | . . . . . Trap . | . . . . . Miscellaneous . | . . . . . Route ------- -11/Scrapyard -10/Materials (discovered 5 exits: [*Mat x3] / *Min / *Sub) -10/Subcaves (discovered 2 exits: *Mat / *Rec) -7/Recycling (discovered 2 exits: *Fac / *Scr) -7/Scraptown (discovered 2 exits: *Fac x2) History --------- Turn | Location | Event 6 | -11/Scrapyard | Discovered new exit (range 15) 206 | -11/Scrapyard | Entered Materials 240 | -10/Materials | Discovered new exit (range 15) 307 | -10/Materials | Build established: Mutant 814 | -10/Materials | Discovered new exit (range 16) 996 | -10/Materials | Identified exit to Mines 1116 | -10/Materials | Discovered new exit (range 14) 1301 | -10/Materials | Discovered new exit (range 16) 1844 | -10/Materials | Discovered new exit (range 13) 1877 | -10/Materials | Prayed at D.C.S.S. Altar Unit 1880 | -10/Materials | Entered Subcaves 2035 | -10/Subcaves | Ambushed by Subdwellers from Twisted Machinery 2461 | -10/Subcaves | X0-1V1 mutated your Propulsion slot to Power slot 2484 | -10/Subcaves | Disturbed a concealed Subdweller 2494 | -10/Subcaves | Core integrity fell below 50% 2501 | -10/Subcaves | Disturbed a concealed Subdweller 2566 | -10/Subcaves | Identified exit to Materials 2566 | -10/Subcaves | X0-1V1 revealed exit location to -8/Materials 2570 | -10/Subcaves | Disturbed a concealed Subdweller 2712 | -10/Subcaves | Energy generation permanently improved by X0-1V1 (+10; -100 max core) 2895 | -10/Subcaves | Build established: Derelict-Mutant 3127 | -10/Subcaves | Shifting Twisted Machinery released Sub. Beam Cannon 3128 | -10/Subcaves | Shifting Twisted Machinery released Flamer 3230 | -10/Subcaves | A Subdweller sparked back to life 3230 | -10/Subcaves | A Subdweller sparked back to life 3230 | -10/Subcaves | A Subdweller sparked back to life 3239 | -10/Subcaves | Core integrity fell below 20% 3239 | -10/Subcaves | Ambushed by Subdweller buried in earth 3239 | -10/Subcaves | X0-1V1 rescued you from certain death 3418 | -10/Subcaves | Found Prototype Power Core 3764 | -10/Subcaves | Discovered exit to Materials (range 15) 3790 | -10/Subcaves | A swath of the cavern ceiling suddenly collapsed 4100 | -10/Subcaves | Weapon slot count permanently improved by X0-1V1 (+1) 4180 | -10/Subcaves | Visited Clippyterm 4191 | -10/Subcaves | Learned Factory fabricator intel 4209 | -10/Subcaves | X0-1V1 sent hostile S-10 Pest (x4) 4410 | -10/Subcaves | Build established: Derelict-Tank 4475 | -10/Subcaves | Identified exit to Recycling 4475 | -10/Subcaves | X0-1V1 revealed exit location to -7/Recycling 4565 | -10/Subcaves | X0-1V1 activates XOMVISION 4605 | -10/Subcaves | X0-1V1 sent hostile S-10 Pest (x3) 4696 | -10/Subcaves | Core integrity permanently improved by X0-1V1 (+250) 4792 | -10/Subcaves | X0-1V1 sent hostile S-10 Pest (x3) 4815 | -10/Subcaves | X0-1V1 mutated your Weapon slot to Utility slot 4835 | -10/Subcaves | X0-1V1 tapped a No Entrance sign 4916 | -10/Subcaves | Core integrity restored by X0-1V1 (+80) 4966 | -10/Subcaves | X0-1V1 sent hostile S-10 Pest (x5) 5043 | -10/Subcaves | System corruption reached 10% 5264 | -10/Subcaves | Build established: Mutant 5315 | -10/Subcaves | Entered Recycling 5316 | -7/Recycling | X0-1V1 vaporized surrounding terrain (radius 15) 5400 | -7/Recycling | Lost 6 parts (1p3n1u1w) 5681 | -7/Recycling | Core integrity restored by X0-1V1 (+60) 5715 | -7/Recycling | Discovered new exit (range 9) 6001 | -7/Recycling | X0-1V1 mutated your Utility slot to Weapon slot 6360 | -7/Recycling | Lost 3 parts (1p2u) 6482 | -7/Recycling | Crushed by falling debris 6482 | -7/Recycling | X0-1V1 rescued you from certain death 6585 | -7/Recycling | Scanned before Scraplab entrance 6619 | -7/Recycling | Entered Scraplab 6638 | -7/Recycling | Discovered new exit (range 2) 6643 | -7/Recycling | Entered Scraptown 6643 | -7/Scraptown | System corruption cleaned by C-Scrubber 6857 | -7/Scraptown | Heard Great Nut preacher, LISTEN AND RECITE! 6996 | -7/Scraptown | Scanned Subdweller tech in exchange for log data 7001 | -7/Scraptown | Learned Research security intel 7004 | -7/Scraptown | Learned 8 Factory zone layouts 7108 | -7/Scraptown | Discovered new exit (range 11) 7805 | -7/Scraptown | Visited Fellowship of the Rings 7839 | -7/Scraptown | Visited The Evicted 7868 | -7/Scraptown | Visited Cyclists 7921 | -7/Scraptown | Visited Comm Corps 8050 | -7/Scraptown | Visited Red Mages 8127 | -7/Scraptown | Visited CPS Storage 8158 | -7/Scraptown | Visited TADAMA 8324 | -7/Scraptown | Visited UFD Registry 8324 | -7/Scraptown | Registered with UFD as "Phasemind" 8437 | -7/Scraptown | Entered Cyclist Reading Room 8561 | -7/Scraptown | Visited Infowarlord's Domain 8600 | -7/Scraptown | Visited Junk Repository 8648 | -7/Scraptown | Visited Curators Association 8717 | -7/Scraptown | Delivered Scrap Shield to a Scientist 9058 | -7/Scraptown | Visited Scrapoid Pod Storage 9094 | -7/Scraptown | Visited Junk Repository 9115 | -7/Scraptown | Visited Scrap Suit Storage 9187 | -7/Scraptown | Visited Chapter 10 9235 | -7/Scraptown | Visited Research Penetration Think Tank 9293 | -7/Scraptown | Visited Cartography Club 9344 | -7/Scraptown | Learned location of Recycling (-7) 9344 | -7/Scraptown | Learned location of Quarantine (-2) 9344 | -7/Scraptown | Learned 16 Materials zone layouts 9344 | -7/Scraptown | Learned 8 Factory zone layouts 9344 | -7/Scraptown | Learned 20 Factory zone layouts 9344 | -7/Scraptown | Learned 12 Research zone layouts 9344 | -7/Scraptown | Learned 4 Recycling zone layouts 9344 | -7/Scraptown | Learned 20 Lower Caves zone layouts 9344 | -7/Scraptown | Learned 12 Lower Caves zone layouts 9344 | -7/Scraptown | Learned 8 Upper Caves zone layouts 9344 | -7/Scraptown | Learned 24 Upper Caves zone layouts 9344 | -7/Scraptown | Learned 4 Armory zone layouts 9344 | -7/Scraptown | Learned Research emergency access door positions 9344 | -7/Scraptown | Learned location of 3 exits from Factory 9344 | -7/Scraptown | Identified exit to Factory 9344 | -7/Scraptown | Learned location of 1 exit from Lower Caves 9366 | -7/Scraptown | Found Deep Structural Scanner 9960 | -7/Scraptown | Found Active Sensor Suite 10416 | -7/Scraptown | Build established: Hauler-Mutant 11098 | -7/Scraptown | Self-destructed Last Messages --------------- 10199_ MU-35M(c): "Come one, come all! See for yourself a fine selection of the many wondrous pieces in our collection!" 10201_ Acquired Gauss Cannon. 10212_ Acquired Grenade Launcher. 10223_ Acquired Sub. Shrapnel Launcher. 10233_ Acquired Lrg. Storage Unit. 10253_ Acquired CPS Tube. 10274_ Acquired Shield Generator. 10284_ Acquired Imp. Sensor Array. 10295_ Acquired Imp. Targeting Computer. 10325_ Acquired Hvy. EM Pulse Gun. 10335_ Acquired Hpw. Tractor Beam. 10344_ MU-35M(c): "Come one, come all! See for yourself a fine selection of the many wondrous pieces in our collection!" 10346_ Acquired Lrg. Storage Unit. 10356_ Acquired 2 matter. 10395_ Dropped Lrg. Storage Unit. 10424_ Acquired CPS Tube. 10578_ MU-35M(c): "Come one, come all! See for yourself a fine selection of the many wondrous pieces in our collection!" Map ----- +----------------------------------------------------+ | ????????????????????????????????